Workbook

Sheet MATRICULA
C2: Secretaría de Educación Pública del Estado de Baja California Sur
C3: Dirección de Educación Secundaria
C5: MATRÍCULA
C7: PERIODO DE EVALUACIÓN: | O7: SEGUNDO PERIODO DE EVALUACIÓN
C8: CICLO ESCOLAR : | O8: 2022-2023
I11: MTRA OFELIA ELIZABETH OCHOA ROMERO
I12: CONCENTRADO EDUCACIÓN SECUNDARIA
B14: DEPARTAMENTOS | C14: MATRÍCULA
C15: INSCRIPCIÓN INICIAL | O15: CAMBIOS DESDE OTRAS ESCUELAS (ALTAS)
C16: PRIMERO | F16: SEGUNDO | I16: TERCERO | L16: TOTAL | O16: PRIMERO | R16: SEGUNDO | U16: TERCERO | X16: TOTAL
C17: H | D17: M | E17: T | F17: H | G17: M | H17: T | I17: H | J17: M | K17: T | L17: H | M17: M | N17: T | O17: H | P17: M | Q17: T | R17: H | S17: M | T17: T | U17: H | V17: M | W17: T | X17: H | Y17: M | Z17: T
B18: Generales Públicas | C18: 2882 | D18: 2812 | E18: =IF(SUM(C18,D18)=0,"",SUM(C18,D18)) -> 5694 | F18: 2784 | G18: 2691 | H18: =IF(SUM(F18,G18)=0,"",SUM(F18,G18)) -> 5475 | I18: 2788 | J18: 2881 | K18: =IF(SUM(I18,J18)=0,"",SUM(I18,J18)) -> 5669 | L18: =IF(SUM(C18,F18,I18)=0,"",SUM(C18,F18,I18)) -> 8454 | M18: =IF(SUM(D18,G18,J18)=0,"",SUM(SUM(D18,G18,J18))) -> 8384 | N18: =IF(SUM(L18,M18)=0,"",SUM(L18,M18)) -> 16838 | O18: 71 | P18: 53 | Q18: =IF(SUM(O18,P18)=0,"",SUM(O18,P18)) -> 124 | R18: 62 | S18: 82 | T18: =IF(SUM(R18,S18)=0,"",SUM(R18,S18)) -> 144 | U18: 41 | V18: 60 | W18: =IF(SUM(U18,V18)=0,"",SUM(U18,V18)) -> 101 | X18: =IF(SUM(O18,R18,U18)=0,"",SUM(O18,R18,U18)) -> 174 | Y18: =IF(SUM(P18,S18,V18)=0,"",SUM(SUM(P18,S18,V18))) -> 195 | Z18: =IF(SUM(X18,Y18)=0,"",SUM(X18,Y18)) -> 369
B19: Particulares | C19: 767 | D19: 729 | E19: =IF(SUM(C19,D19)=0,"",SUM(C19,D19)) -> 1496 | F19: 622 | G19: 657 | H19: =IF(SUM(F19,G19)=0,"",SUM(F19,G19)) -> 1279 | I19: 587 | J19: 639 | K19: =IF(SUM(I19,J19)=0,"",SUM(I19,J19)) -> 1226 | L19: =IF(SUM(C19,F19,I19)=0,"",SUM(C19,F19,I19)) -> 1976 | M19: =IF(SUM(D19,G19,J19)=0,"",SUM(SUM(D19,G19,J19))) -> 2025 | N19: =IF(SUM(L19,M19)=0,"",SUM(L19,M19)) -> 4001 | O19: 29 | P19: 27 | Q19: =IF(SUM(O19,P19)=0,"",SUM(O19,P19)) -> 56 | R19: 26 | S19: 25 | T19: =IF(SUM(R19,S19)=0,"",SUM(R19,S19)) -> 51 | U19: 19 | V19: 12 | W19: =IF(SUM(U19,V19)=0,"",SUM(U19,V19)) -> 31 | X19: =IF(SUM(O19,R19,U19)=0,"",SUM(O19,R19,U19)) -> 74 | Y19: =IF(SUM(P19,S19,V19)=0,"",SUM(SUM(P19,S19,V19))) -> 64 | Z19: =IF(SUM(X19,Y19)=0,"",SUM(X19,Y19)) -> 138
B20: Técnicas | C20: 2568 | D20: 2549 | E20: 5117 | F20: 2570 | G20: 2542 | H20: 5112 | I20: 2537 | J20: 2539 | K20: 5076 | L20: 7675 | M20: 7630 | N20: 15305 | O20: 75 | P20: 64 | Q20: 139 | R20: 53 | S20: 73 | T20: 126 | U20: 31 | V20: 49 | W20: 23 | X20: 159 | Y20: 186 | Z20: 345
B21: Telesecundarias | C21: 941 | D21: 776 | E21: 1717 | F21: 926 | G21: 813 | H21: 1739 | I21: 847 | J21: 755 | K21: 1602 | L21: 2714 | M21: 2344 | N21: 5058 | O21: 34 | P21: 23 | Q21: 57 | R21: 33 | S21: 38 | T21: 71 | U21: 14 | V21: 25 | W21: 39 | X21: 81 | Y21: 86 | Z21: 167
E22: =IF(SUM(C22,D22)=0,"",SUM(C22,D22)) ->  | H22: =IF(SUM(F22,G22)=0,"",SUM(F22,G22)) ->  | K22: =IF(SUM(I22,J22)=0,"",SUM(I22,J22)) ->  | L22: =IF(SUM(C22,F22,I22)=0,"",SUM(C22,F22,I22)) ->  | M22: =IF(SUM(D22,G22,J22)=0,"",SUM(SUM(D22,G22,J22))) ->  | N22: =IF(SUM(L22,M22)=0,"",SUM(L22,M22)) ->  | Q22: =IF(SUM(O22,P22)=0,"",SUM(O22,P22)) ->  | T22: =IF(SUM(R22,S22)=0,"",SUM(R22,S22)) ->  | W22: =IF(SUM(U22,V22)=0,"",SUM(U22,V22)) ->  | X22: =IF(SUM(O22,R22,U22)=0,"",SUM(O22,R22,U22)) ->  | Y22: =IF(SUM(P22,S22,V22)=0,"",SUM(SUM(P22,S22,V22))) ->  | Z22: =IF(SUM(X22,Y22)=0,"",SUM(X22,Y22)) -> 
B28: TOTAL | C28: =IF(SUM(C18:C27)=0,"",SUM(C18:C27)) -> 7158 | D28: 6866 | E28: 14024 | F28: 6902 | G28: 6703 | H28: 13605 | I28: 6759 | J28: 6814 | K28: 13573 | L28: 20819 | M28: 20383 | N28: 41202 | O28: 209 | P28: 167 | Q28: 376 | R28: 174 | S28: 218 | T28: 392 | U28: 105 | V28: 146 | W28: 194 | X28: 488 | Y28: 531 | Z28: 1019
B30: Zona escolar | C30: BAJAS | AA30: EXISTENCIA
C31: DESERCIÓN | O31: CAMBIOS HACIA OTRAS ESCUELAS (TRASLADOS)
C32: PRIMERO | F32: SEGUNDO | I32: TERCERO | L32: TOTAL | O32: PRIMERO | R32: SEGUNDO | U32: TERCERO | X32: TOTAL | AA32: PRIMERO | AD32: SEGUNDO | AG32: TERCERO | AJ32: TOTAL
C33: H | D33: M | E33: T | F33: H | G33: M | H33: T | I33: H | J33: M | K33: T | L33: H | M33: M | N33: T | O33: H | P33: M | Q33: T | R33: H | S33: M | T33: T | U33: H | V33: M | W33: T | X33: H | Y33: M | Z33: T | AA33: H | AB33: M | AC33: T | AD33: H | AE33: M | AF33: T | AG33: H | AH33: M | AI33: T | AJ33: H | AK33: M | AL33: T
B34: =IF(B18=0,"",B18) -> Generales Públicas | C34: 1 | D34: 2 | E34: =IF(SUM(C34,D34)=0,"",SUM(C34,D34)) -> 3 | F34: 3 | G34: 4 | H34: =IF(SUM(F34,G34)=0,"",SUM(F34,G34)) -> 7 | I34: 6 | J34: 1 | K34: =IF(SUM(I34,J34)=0,"",SUM(I34,J34)) -> 7 | L34: =IF(SUM(C34,F34,I34)=0,"",SUM(C34,F34,I34)) -> 10 | M34: =IF(SUM(D34,G34,J34)=0,"",SUM(SUM(D34,G34,J34))) -> 7 | N34: =IF(SUM(L34,M34)=0,"",SUM(L34,M34)) -> 17 | O34: 87 | P34: 75 | Q34: =IF(SUM(O34,P34)=0,"",SUM(O34,P34)) -> 162 | R34: 70 | S34: 81 | T34: =IF(SUM(R34,S34)=0,"",SUM(R34,S34)) -> 151 | U34: 64 | V34: 60 | W34: =IF(SUM(U34,V34)=0,"",SUM(U34,V34)) -> 124 | X34: =IF(SUM(O34,R34,U34)=0,"",SUM(O34,R34,U34)) -> 221 | Y34: =IF(SUM(P34,S34,V34)=0,"",SUM(SUM(P34,S34,V34))) -> 216 | Z34: =IF(SUM(X34,Y34)=0,"",SUM(X34,Y34)) -> 437 | AA34: =IF(SUM(C18,O18-C34-O34)=0,"",SUM(C18,O18-C34-O34)) -> 2865 | AB34: =IF(SUM(D18,P18-D34-P34)=0,"",SUM(D18,P18-D34-P34)) -> 2788 | AC34: =IF(SUM(AA34,AB34)=0,"",SUM(AA34,AB34)) -> 5653 | AD34: =IF(SUM(F18,R18-F34-R34)=0,"",SUM(F18,R18-F34-R34)) -> 2773 | AE34: =IF(SUM(G18,S18-G34-S34)=0,"",SUM(G18,S18-G34-S34)) -> 2688 | AF34: =IF(SUM(AD34,AE34)=0,"",SUM(AD34,AE34)) -> 5461 | AG34: =IF(SUM(I18,U18-I34-U34)=0,"",SUM(I18,U18-I34-U34)) -> 2759 | AH34: =IF(SUM(J18,V18-J34-V34)=0,"",SUM(J18,V18-J34-V34)) -> 2880 | AI34: =IF(SUM(AG34,AH34)=0,"",SUM(AG34,AH34)) -> 5639 | AJ34: =IF(SUM(AA34,AD34,AG34)=0,"",SUM(AA34,AD34,AG34)) -> 8397 | AK34: =IF(SUM(AB34,AE34,AH34)=0,"",SUM(SUM(AB34,AE34,AH34))) -> 8356 | AL34: =IF(SUM(AJ34,AK34)=0,"",SUM(AJ34,AK34)) -> 16753
B35: =IF(B19=0,"",B19) -> Particulares | C35: 1 | D35: 2 | E35: =IF(SUM(C35,D35)=0,"",SUM(C35,D35)) -> 3 | F35: 0 | G35: 1 | H35: =IF(SUM(F35,G35)=0,"",SUM(F35,G35)) -> 1 | I35: 1 | J35: 1 | K35: =IF(SUM(I35,J35)=0,"",SUM(I35,J35)) -> 2 | L35: =IF(SUM(C35,F35,I35)=0,"",SUM(C35,F35,I35)) -> 2 | M35: =IF(SUM(D35,G35,J35)=0,"",SUM(SUM(D35,G35,J35))) -> 4 | N35: =IF(SUM(L35,M35)=0,"",SUM(L35,M35)) -> 6 | O35: 14 | P35: 10 | Q35: =IF(SUM(O35,P35)=0,"",SUM(O35,P35)) -> 24 | R35: 10 | S35: 16 | T35: =IF(SUM(R35,S35)=0,"",SUM(R35,S35)) -> 26 | U35: 6 | V35: 13 | W35: =IF(SUM(U35,V35)=0,"",SUM(U35,V35)) -> 19 | X35: =IF(SUM(O35,R35,U35)=0,"",SUM(O35,R35,U35)) -> 30 | Y35: =IF(SUM(P35,S35,V35)=0,"",SUM(SUM(P35,S35,V35))) -> 39 | Z35: =IF(SUM(X35,Y35)=0,"",SUM(X35,Y35)) -> 69 | AA35: 781 | AB35: 744 | AC35: 1525 | AD35: 638 | AE35: 665 | AF35: =IF(SUM(AD35,AE35)=0,"",SUM(AD35,AE35)) -> 1303 | AG35: 599 | AH35: 637 | AI35: =IF(SUM(AG35,AH35)=0,"",SUM(AG35,AH35)) -> 1236 | AJ35: =IF(SUM(AA35,AD35,AG35)=0,"",SUM(AA35,AD35,AG35)) -> 2018 | AK35: =IF(SUM(AB35,AE35,AH35)=0,"",SUM(SUM(AB35,AE35,AH35))) -> 2046 | AL35: =IF(SUM(AJ35,AK35)=0,"",SUM(AJ35,AK35)) -> 4064
B36: Técnicas | C36: 12 | D36: 8 | E36: 20 | F36: 12 | G36: 9 | H36: 21 | I36: 10 | J36: 3 | K36: 13 | L36: 34 | M36: 20 | N36: 54 | O36: 64 | P36: 70 | Q36: 134 | R36: 58 | S36: 84 | T36: 142 | U36: 42 | V36: 51 | W36: 93 | X36: 164 | Y36: 205 | Z36: 369 | AA36: 2567 | AB36: 2535 | AC36: 5102 | AD36: 2553 | AE36: 2522 | AF36: 5075 | AG36: 2516 | AH36: 2534 | AI36: 5050 | AJ36: 7636 | AK36: 7591 | AL36: 15227
B37: Telesecundarias | C37: 8 | D37: 3 | E37: 11 | F37: 4 | G37: 5 | H37: 9 | I37: 5 | J37: 4 | K37: 9 | L37: 17 | M37: 12 | N37: 29 | O37: 28 | P37: 19 | Q37: 47 | R37: 16 | S37: 23 | T37: 39 | U37: 24 | V37: 19 | W37: 43 | X37: 68 | Y37: 61 | Z37: 129 | AA37: 939 | AB37: 777 | AC37: 1716 | AD37: 939 | AE37: 823 | AF37: 1762 | AG37: 832 | AH37: 757 | AI37: 1589 | AJ37: 2710 | AK37: 2357 | AL37: 5067
E38: =IF(SUM(C38,D38)=0,"",SUM(C38,D38)) ->  | H38: =IF(SUM(F38,G38)=0,"",SUM(F38,G38)) ->  | K38: =IF(SUM(I38,J38)=0,"",SUM(I38,J38)) ->  | L38: =IF(SUM(C38,F38,I38)=0,"",SUM(C38,F38,I38)) ->  | N38: =IF(SUM(L38,M38)=0,"",SUM(L38,M38)) ->  | Q38: =IF(SUM(O38,P38)=0,"",SUM(O38,P38)) ->  | T38: =IF(SUM(R38,S38)=0,"",SUM(R38,S38)) ->  | W38: =IF(SUM(U38,V38)=0,"",SUM(U38,V38)) ->  | X38: =IF(SUM(O38,R38,U38)=0,"",SUM(O38,R38,U38)) ->  | Y38: =IF(SUM(P38,S38,V38)=0,"",SUM(SUM(P38,S38,V38))) ->  | Z38: =IF(SUM(X38,Y38)=0,"",SUM(X38,Y38)) ->  | AC38: =IF(SUM(AA38,AB38)=0,"",SUM(AA38,AB38)) ->  | AF38: =IF(SUM(AD38,AE38)=0,"",SUM(AD38,AE38)) ->  | AI38: =IF(SUM(AG38,AH38)=0,"",SUM(AG38,AH38)) ->  | AJ38: =IF(SUM(AA38,AD38,AG38)=0,"",SUM(AA38,AD38,AG38)) ->  | AK38: =IF(SUM(AB38,AE38,AH38)=0,"",SUM(SUM(AB38,AE38,AH38))) ->  | AL38: =IF(SUM(AJ38,AK38)=0,"",SUM(AJ38,AK38)) -> 
B44: TOTAL | C44: =IF(SUM(C34:C43)=0,"",SUM(C34:C43)) -> 22 | D44: 15 | E44: 37 | F44: 19 | G44: 19 | H44: 38 | I44: 22 | J44: 9 | K44: 31 | L44: 63 | M44: 43 | N44: 106 | O44: 193 | P44: 174 | Q44: 367 | R44: 154 | S44: 204 | T44: 358 | U44: 136 | V44: 143 | W44: 279 | X44: 483 | Y44: 521 | Z44: 1004 | AA44: 7152 | AB44: 6844 | AC44: 13996 | AD44: 6903 | AE44: 6698 | AF44: 13601 | AG44: 6706 | AH44: 6808 | AI44: 13514 | AJ44: 20761 | AK44: 20350 | AL44: 41111

Sheet APROV 1
C3: Secretaría de Educación Pública del Estado de Baja California Sur
C4: Dirección de Educación Secundaria
C5: APROVECHAMIENTO Y RIESGO DE NO ACREDITAR
C6: PRIMER GRADO
C7: PERIODO EVALUACIÓN: | O7: =IF(MATRICULA!O7=0,"",MATRICULA!O7) -> SEGUNDO PERIODO DE EVALUACIÓN
C8: CICLO ESCOLAR : | O8: =IF(MATRICULA!O8=0,"",MATRICULA!O8) -> 2022-2023
A10: JEFE DEPARTAMENTO : | F10: =MATRICULA!I11 -> MTRA OFELIA ELIZABETH OCHOA ROMERO
A11: MODALIDAD : | F11: =MATRICULA!I12 -> CONCENTRADO EDUCACIÓN SECUNDARIA
A13: Promedio de Aprovechamiento de los Campos de Formación Académica | AA13: Promedio de Aprovechamiento de las Áreas de Desarrollo Personal y Social | AG13: Prom. Final
A14: DE | B14: GRUPOS | C14: Lengua Materna | F14: Matemáticas | I14: Inglés | L14: Ciencias y tecnología (Biología) | O14: Historia | R14: Geografía | U14: Formación Cívica y Ética | X14: Tecnología I | AA14: Educación Física | AD14: Artes
C15: CALIF | F15: CALIF | I15: CALIF | L15: CALIF | O15: CALIF | R15: CALIF | U15: CALIF | X15: CALIF | AA15: CALIF | AD15: CALIF | AG15: CALIF
A16: =IF(MATRICULA!B18=0,"",MATRICULA!B18) -> Generales Públicas | B16: 186 | C16: 8.5 | F16: 8.2 | I16: 8.6 | L16: 8.5 | O16: 8.6 | R16: 8.6 | U16: 8.5 | X16: 8.8 | AA16: 9.4 | AD16: 8.9 | AG16: =IFERROR(ROUND(AVERAGE(C16:AF16),1),"") -> 8.7
A17: =IF(MATRICULA!B19=0,"",MATRICULA!B19) -> Particulares | B17: 77 | C17: 8.3 | F17: 8.4 | I17: 8.7 | L17: 8.6 | O17: 8.6 | R17: 8.7 | U17: 8.9 | X17: 9 | AA17: 9.5 | AD17: 9.4 | AG17: =IFERROR(ROUND(AVERAGE(C17:AF17),1),"") -> 8.8
A18: =IF(MATRICULA!B20=0,"",MATRICULA!B20) -> Técnicas | B18: 244 | C18: 8.3 | F18: 8.1 | I18: 8.4 | L18: 8.4 | O18: 8.2 | R18: 8.4 | U18: 8.3 | X18: 8.6 | AA18: 9.4 | AD18: 8.7 | AG18: 8.5
A19: =IF(MATRICULA!B21=0,"",MATRICULA!B21) -> Telesecundarias | B19: 102 | C19: 8.1 | F19: 7.9 | I19: 8.2 | L19: 8.2 | O19: 8.1 | R19: 8.1 | U19: 8.4 | X19: 8.9 | AA19: 9.2 | AD19: 8.9 | AG19: 8.4
A20: =IF(MATRICULA!B22=0,"",MATRICULA!B22) -> 
A21: =IF(MATRICULA!B23=0,"",MATRICULA!B23) -> 
A22: =IF(MATRICULA!B24=0,"",MATRICULA!B24) -> 
A23: =IF(MATRICULA!B25=0,"",MATRICULA!B25) -> 
A24: =IF(MATRICULA!B26=0,"",MATRICULA!B26) -> 
A25: =IF(MATRICULA!B27=0,"",MATRICULA!B27) -> 
A26: Gral. | B26: =IF(SUM(B16:B24)=0,"",SUM(B16:B24)) -> 609 | C26: =IFERROR(ROUND(AVERAGE(C16:E25),1),"") -> 8.3 | F26: =IFERROR(ROUND(AVERAGE(F16:H25),1),"") -> 8.2 | I26: =IFERROR(ROUND(AVERAGE(I16:K25),1),"") -> 8.5 | L26: =IFERROR(ROUND(AVERAGE(L16:N25),1),"") -> 8.4 | O26: =IFERROR(ROUND(AVERAGE(O16:Q25),1),"") -> 8.4 | R26: =IFERROR(ROUND(AVERAGE(R16:T25),1),"") -> 8.5 | U26: =IFERROR(ROUND(AVERAGE(U16:W25),1),"") -> 8.5 | X26: =IFERROR(ROUND(AVERAGE(X16:Z25),1),"") -> 8.8 | AA26: =IFERROR(ROUND(AVERAGE(AA16:AC25),1),"") -> 9.4 | AD26: =IFERROR(ROUND(AVERAGE(AD16:AF25),1),"") -> 9 | AG26: =IFERROR(ROUND(AVERAGE(C26:AF26),1),"") -> 8.6
A28: Campos de Formación Académica en riesgo de no acreditar | AA28: Áreas de Desarrollo Personal y Social en situación de riesgo de no acreditar | AG28: Total
A29: ZONA ESCOLAR | C29: Lengua Materna | F29: Matemáticas | I29: Inglés | L29: Ciencias y tecnología (Biología) | O29: Historia | R29: Geografía | U29: Formación Cívica y Ética | X29: Tecnología I | AA29: Educación Física | AD29: Artes
C30: 5 | D30: 6 | E30: T | F30: 5 | G30: 6 | H30: T | I30: 5 | J30: 6 | K30: T | L30: 5 | M30: 6 | N30: T | O30: 5 | P30: 6 | Q30: T | R30: 5 | S30: 6 | T30: T | U30: 5 | V30: 6 | W30: T | X30: 5 | Y30: 6 | Z30: T | AA30: 5 | AB30: 6 | AC30: T | AD30: 5 | AE30: 6 | AF30: T | AG30: 5 | AH30: 6
A31: =IF(MATRICULA!B18=0,"",MATRICULA!B18) -> Generales Públicas | C31: 181 | D31: 461 | E31: =IF(SUM(C31,D31)=0,"",SUM(C31,D31)) -> 642 | F31: 242 | G31: 590 | H31: =IF(SUM(F31,G31)=0,"",SUM(F31,G31)) -> 832 | I31: 136 | J31: 354 | K31: =IF(SUM(I31,J31)=0,"",SUM(I31,J31)) -> 490 | L31: 263 | M31: 371 | N31: =IF(SUM(L31,M31)=0,"",SUM(L31,M31)) -> 634 | O31: 164 | P31: 357 | Q31: =IF(SUM(O31,P31)=0,"",SUM(O31,P31)) -> 521 | R31: 230 | S31: 415 | T31: =IF(SUM(R31,S31)=0,"",SUM(R31,S31)) -> 645 | U31: 164 | V31: 390 | W31: =IF(SUM(U31,V31)=0,"",SUM(U31,V31)) -> 554 | X31: 178 | Y31: 313 | Z31: =IF(SUM(X31,Y31)=0,"",SUM(X31,Y31)) -> 491 | AA31: 38 | AB31: 89 | AC31: =IF(SUM(AA31,AB31)=0,"",SUM(AA31,AB31)) -> 127 | AD31: 75 | AE31: 247 | AF31: =IF(SUM(AD31,AE31)=0,"",SUM(AD31,AE31)) -> 322 | AG31: =IF(SUM(C31,F31,I31,L31,O31,R31,U31,X31,AA31,AD31)=0,"",SUM(C31,F31,I31,L31,O31,R31,U31,X31,AA31,AD31)) -> 1671 | AH31: =IF(SUM(D31,G31,J31,M31,P31,S31,V31,Y31,AB31,AE31)=0,"",SUM(D31,G31,J31,M31,P31,S31,V31,Y31,AB31,AE31)) -> 3587
A32: =IF(MATRICULA!B19=0,"",MATRICULA!B19) -> Particulares | C32: 18 | D32: 36 | E32: =IF(SUM(C32,D32)=0,"",SUM(C32,D32)) -> 54 | F32: 16 | G32: 34 | H32: =IF(SUM(F32,G32)=0,"",SUM(F32,G32)) -> 50 | I32: 11 | J32: 58 | K32: =IF(SUM(I32,J32)=0,"",SUM(I32,J32)) -> 69 | L32: 11 | M32: 81 | N32: =IF(SUM(L32,M32)=0,"",SUM(L32,M32)) -> 92 | O32: 11 | P32: 51 | Q32: =IF(SUM(O32,P32)=0,"",SUM(O32,P32)) -> 62 | R32: 7 | S32: 67 | T32: =IF(SUM(R32,S32)=0,"",SUM(R32,S32)) -> 74 | U32: 21 | V32: 162 | W32: =IF(SUM(U32,V32)=0,"",SUM(U32,V32)) -> 183 | X32: 22 | Y32: 63 | Z32: =IF(SUM(X32,Y32)=0,"",SUM(X32,Y32)) -> 85 | AA32: 3 | AB32: 12 | AC32: =IF(SUM(AA32,AB32)=0,"",SUM(AA32,AB32)) -> 15 | AD32: 13 | AE32: 21 | AF32: =IF(SUM(AD32,AE32)=0,"",SUM(AD32,AE32)) -> 34 | AG32: =IF(SUM(C32,F32,I32,L32,O32,R32,U32,X32,AA32,AD32)=0,"",SUM(C32,F32,I32,L32,O32,R32,U32,X32,AA32,AD32)) -> 133 | AH32: =IF(SUM(D32,G32,J32,M32,P32,S32,V32,Y32,AB32,AE32)=0,"",SUM(D32,G32,J32,M32,P32,S32,V32,Y32,AB32,AE32)) -> 585
A33: =IF(MATRICULA!B20=0,"",MATRICULA!B20) -> Técnicas | C33: 289 | D33: 454 | E33: =IF(SUM(C33,D33)=0,"",SUM(C33,D33)) -> 743 | F33: 212 | G33: 688 | H33: 900 | I33: 242 | J33: 485 | K33: 727 | L33: 232 | M33: 518 | N33: 750 | O33: 387 | P33: 526 | Q33: 913 | R33: 210 | S33: 455 | T33: 665 | U33: 237 | V33: 509 | W33: 746 | X33: 242 | Y33: 424 | Z33: 666 | AA33: 46 | AB33: 62 | AC33: 108 | AD33: 186 | AE33: 417 | AF33: 603 | AG33: 2283 | AH33: =IF(SUM(D33,G33,J33,M33,P33,S33,V33,Y33,AB33,AE33)=0,"",SUM(D33,G33,J33,M33,P33,S33,V33,Y33,AB33,AE33)) -> 4538
A34: =IF(MATRICULA!B21=0,"",MATRICULA!B21) -> Telesecundarias | C34: 59 | D34: 160 | E34: 219 | F34: 51 | G34: 192 | H34: 243 | I34: 38 | J34: 173 | K34: 211 | L34: 60 | M34: 163 | N34: 223 | O34: 45 | P34: 171 | Q34: 216 | R34: 73 | S34: 148 | T34: 221 | U34: 42 | V34: 132 | W34: 174 | X34: 25 | Y34: 76 | Z34: 101 | AA34: 20 | AB34: 39 | AC34: 59 | AD34: 31 | AE34: 64 | AF34: 95 | AG34: 444 | AH34: 1318
A35: =IF(MATRICULA!B22=0,"",MATRICULA!B22) -> 
A36: =IF(MATRICULA!B23=0,"",MATRICULA!B23) -> 
A37: =IF(MATRICULA!B24=0,"",MATRICULA!B24) -> 
A38: =IF(MATRICULA!B25=0,"",MATRICULA!B25) ->  | E38: =IF(SUM(C38,D38)=0,"",SUM(C38,D38)) ->  | H38: =IF(SUM(F38,G38)=0,"",SUM(F38,G38)) ->  | K38: =IF(SUM(I38,J38)=0,"",SUM(I38,J38)) ->  | N38: =IF(SUM(L38,M38)=0,"",SUM(L38,M38)) ->  | Q38: =IF(SUM(O38,P38)=0,"",SUM(O38,P38)) ->  | T38: =IF(SUM(R38,S38)=0,"",SUM(R38,S38)) ->  | W38: =IF(SUM(U38,V38)=0,"",SUM(U38,V38)) ->  | Z38: =IF(SUM(X38,Y38)=0,"",SUM(X38,Y38)) ->  | AC38: =IF(SUM(AA38,AB38)=0,"",SUM(AA38,AB38)) ->  | AF38: =IF(SUM(AD38,AE38)=0,"",SUM(AD38,AE38)) ->  | AG38: =IF(SUM(C38,F38,I38,L38,O38,R38,U38,X38,AA38,AD38)=0,"",SUM(C38,F38,I38,L38,O38,R38,U38,X38,AA38,AD38)) ->  | AH38: =IF(SUM(D38,G38,J38,M38,P38,S38,V38,Y38,AB38,AE38)=0,"",SUM(D38,G38,J38,M38,P38,S38,V38,Y38,AB38,AE38)) -> 
A39: =IF(MATRICULA!B26=0,"",MATRICULA!B26) ->  | E39: =IF(SUM(C39,D39)=0,"",SUM(C39,D39)) ->  | H39: =IF(SUM(F39,G39)=0,"",SUM(F39,G39)) ->  | K39: =IF(SUM(I39,J39)=0,"",SUM(I39,J39)) ->  | N39: =IF(SUM(L39,M39)=0,"",SUM(L39,M39)) ->  | Q39: =IF(SUM(O39,P39)=0,"",SUM(O39,P39)) ->  | T39: =IF(SUM(R39,S39)=0,"",SUM(R39,S39)) ->  | W39: =IF(SUM(U39,V39)=0,"",SUM(U39,V39)) ->  | Z39: =IF(SUM(X39,Y39)=0,"",SUM(X39,Y39)) ->  | AC39: =IF(SUM(AA39,AB39)=0,"",SUM(AA39,AB39)) ->  | AF39: =IF(SUM(AD39,AE39)=0,"",SUM(AD39,AE39)) ->  | AG39: =IF(SUM(C39,F39,I39,L39,O39,R39,U39,X39,AA39,AD39)=0,"",SUM(C39,F39,I39,L39,O39,R39,U39,X39,AA39,AD39)) ->  | AH39: =IF(SUM(D39,G39,J39,M39,P39,S39,V39,Y39,AB39,AE39)=0,"",SUM(D39,G39,J39,M39,P39,S39,V39,Y39,AB39,AE39)) -> 
A40: =IF(MATRICULA!B27=0,"",MATRICULA!B27) -> 
A41: Total | C41: =IF(SUM(C31:C40)=0,"",SUM(C31:C40)) -> 547 | D41: 1111 | E41: 1658 | F41: 521 | G41: 1504 | H41: 2025 | I41: 427 | J41: 1070 | K41: 1497 | L41: 566 | M41: 1133 | N41: 1699 | O41: 607 | P41: 1105 | Q41: 1712 | R41: 520 | S41: 1085 | T41: 1605 | U41: 464 | V41: 1193 | W41: 1657 | X41: 467 | Y41: 876 | Z41: 1343 | AA41: 107 | AB41: 202 | AC41: 309 | AD41: 305 | AE41: 749 | AF41: 1054 | AG41: 4531 | AH41: 10028
A43: Nota: Para las columnas "Campos de Formación Académica y Áreas de Desarrollo Personal y Social en riesgo de no acreditar" registre la cantidad de cincos o seis que existen en cada campo o área.

Sheet Gráfica APROV 1
B3: Secretaría de Educación Pública del Estado de Baja California Sur
B4: Dirección de Educación Secundaria
B5: PRIMER GRADO
B6: PERIODO EVALUACIÓN: | N6: =MATRICULA!$O$7 -> SEGUNDO PERIODO DE EVALUACIÓN
B7: CICLO ESCOLAR : | N7: =MATRICULA!$O$8 -> 2022-2023
A9: JEFE DEPARTAMENTO : | H9: =MATRICULA!I11 -> MTRA OFELIA ELIZABETH OCHOA ROMERO
A10: MODALIDAD : | H10: =MATRICULA!I12 -> CONCENTRADO EDUCACIÓN SECUNDARIA
B17: Lengua Materna | C17: Matemáticas | D17: Inglés | E17: Ciencias y tecnología (Biología) | F17: Historia | G17: Geografía | H17: Formación Cívica y Ética | I17: Tecnología I | J17: Educación Física | K17: Artes
B18: ='APROV 1'!C26 -> 8.3 | C18: ='APROV 1'!F26 -> 8.2 | D18: ='APROV 1'!I26 -> 8.5 | E18: ='APROV 1'!L26 -> 8.4 | F18: ='APROV 1'!O26 -> 8.4 | G18: ='APROV 1'!R26 -> 8.5 | H18: ='APROV 1'!U26 -> 8.5 | I18: ='APROV 1'!X26 -> 8.8 | J18: ='APROV 1'!AA26 -> 9.4 | K18: ='APROV 1'!AD26 -> 9

Sheet APROV 2
C3: Secretaría de Educación Pública del Estado de Baja California Sur
C4: Dirección de Educación Secundaria
C5: APROVECHAMIENTO Y RIESGO DE NO ACREDITAR
C6: SEGUNDO GRADO
C7: PERIODO EVALUACIÓN: | O7: =IF('APROV 1'!O7:AA7<>0,'APROV 1'!O7:AA7, "") -> SEGUNDO PERIODO DE EVALUACIÓN
C8: CICLO ESCOLAR : | O8: =IF('APROV 1'!O8:AA8<>0, 'APROV 1'!O8:AA8, "") -> 2022-2023
A10: JEFE DE DEPARTAMENTO: | I10: =MATRICULA!I11 -> MTRA OFELIA ELIZABETH OCHOA ROMERO
A11: MODALIDAD : | I11: =MATRICULA!I12 -> CONCENTRADO EDUCACIÓN SECUNDARIA
A14: Promedio de Aprovechamiento de los Campos de Formación Académica | X14: Promedio de Aprovechamiento de las Áreas de Desarrollo Personal y Social
A15: Zona escolar | B15: GRUPOS | C15: Lengua Materna | F15: Matemáticas | I15: Inglés | L15: Ciencias y tecnología (Física) | O15: Historia | R15: Formación Cívica y Ética | U15: Tecnología II | X15: Educación Física | AA15: Artes | AD15: Prom. Final
C16: CALIF | F16: CALIF | I16: CALIF | L16: CALIF | O16: CALIF | R16: CALIF | U16: CALIF | X16: CALIF | AA16: CALIF | AD16: CALIF
A17: =IF(MATRICULA!B18=0,"",MATRICULA!B18) -> Generales Públicas | B17: 185 | C17: 8.5 | F17: 8.2 | I17: 8.6 | L17: 8.3 | O17: 8.5 | R17: 8.6 | U17: 8.8 | X17: 9.5 | AA17: 8.7 | AD17: =IFERROR(ROUND(AVERAGE(C17:AC17),1),"") -> 8.6
A18: =IF(MATRICULA!B19=0,"",MATRICULA!B19) -> Particulares | B18: 74 | C18: 8.8 | F18: 8.5 | I18: 8.8 | L18: 8.7 | O18: 8.9 | R18: 9 | U18: 9.1 | X18: 9.7 | AA18: 9.5 | AD18: 9
A19: =IF(MATRICULA!B20=0,"",MATRICULA!B20) -> Técnicas | B19: 244 | C19: 8.4 | F19: 8 | I19: 8.4 | L19: 8.4 | O19: 8.4 | R19: 8.4 | U19: 8.6 | X19: 9.4 | AA19: 8.9 | AD19: 8.5
A20: =IF(MATRICULA!B21=0,"",MATRICULA!B21) -> Telesecundarias | B20: 105 | C20: 8.4 | F20: 8.1 | I20: 8.3 | L20: 8.2 | O20: 8.3 | R20: 8.6 | U20: 9.1 | X20: 9.2 | AA20: 9.1 | AD20: 8.6
A21: =IF(MATRICULA!B22=0,"",MATRICULA!B22) -> 
A22: =IF(MATRICULA!B23=0,"",MATRICULA!B23) -> 
A23: =IF(MATRICULA!B24=0,"",MATRICULA!B24) -> 
A24: =IF(MATRICULA!B25=0,"",MATRICULA!B25) ->  | AD24: =IFERROR(ROUND(AVERAGE(C24:AC24),1),"") -> 
A25: =IF(MATRICULA!B26=0,"",MATRICULA!B26) -> 
A26: =IF(MATRICULA!B27=0,"",MATRICULA!B27) -> 
A27: Gral. | B27: =IF(SUM(B17:B25)=0,"",SUM(B17:B25)) -> 608 | C27: =IFERROR(ROUND(AVERAGE(C17:E26),1),"") -> 8.5 | F27: =IFERROR(ROUND(AVERAGE(F17:H26),1),"") -> 8.2 | I27: =IFERROR(ROUND(AVERAGE(I17:K26),1),"") -> 8.5 | L27: =IFERROR(ROUND(AVERAGE(L17:N26),1),"") -> 8.4 | O27: =IFERROR(ROUND(AVERAGE(O17:Q26),1),"") -> 8.5 | R27: =IFERROR(ROUND(AVERAGE(R17:T26),1),"") -> 8.7 | U27: =IFERROR(ROUND(AVERAGE(U17:W26),1),"") -> 8.9 | X27: =IFERROR(ROUND(AVERAGE(X17:Z26),1),"") -> 9.5 | AA27: =IFERROR(ROUND(AVERAGE(AA17:AC26),1),"") -> 9.1 | AD27: =IFERROR(ROUND(AVERAGE(C27:AC27),1),"") -> 8.7
A29: Campos de Formación Académica en situacion de riesgo de no acreditar | X29: Áreas de Desarrollo Personal y Social en situación de riesgo de no acreditar
A30: Zona escolar | C30: Lengua Materna | F30: Matemáticas | I30: Inglés | L30: Ciencias y tecnología (Física) | O30: Historia | R30: Formación Cívica y Ética | U30: Tecnología II | X30: Educación Física | AA30: Artes | AD30: Total
C31: 5 | D31: 6 | E31: T | F31: 5 | G31: 6 | H31: T | I31: 5 | J31: 6 | K31: T | L31: 5 | M31: 6 | N31: T | O31: 5 | P31: 6 | Q31: T | R31: 5 | S31: 6 | T31: T | U31: 5 | V31: 6 | W31: T | X31: 5 | Y31: 6 | Z31: T | AA31: 5 | AB31: 6 | AC31: T | AD31: 5 | AE31: 6
A32: =IF(MATRICULA!B18=0,"",MATRICULA!B18) -> Generales Públicas | C32: 246 | D32: 533 | E32: =IF(SUM(C32,D32)=0,"",SUM(C32,D32)) -> 779 | F32: 343 | G32: 559 | H32: =IF(SUM(F32,G32)=0,"",SUM(F32,G32)) -> 902 | I32: 156 | J32: 447 | K32: =IF(SUM(I32,J32)=0,"",SUM(I32,J32)) -> 603 | L32: 306 | M32: 590 | N32: =IF(SUM(L32,M32)=0,"",SUM(L32,M32)) -> 896 | O32: 229 | P32: 461 | Q32: =IF(SUM(O32,P32)=0,"",SUM(O32,P32)) -> 690 | R32: 131 | S32: 372 | T32: =IF(SUM(R32,S32)=0,"",SUM(R32,S32)) -> 503 | U32: 210 | V32: 343 | W32: =IF(SUM(U32,V32)=0,"",SUM(U32,V32)) -> 553 | X32: 57 | Y32: 76 | Z32: =IF(SUM(X32,Y32)=0,"",SUM(X32,Y32)) -> 133 | AA32: 173 | AB32: 340 | AC32: =IF(SUM(AA32,AB32)=0,"",SUM(AA32,AB32)) -> 513 | AD32: =IF(SUM(C32,F32,I32,L32,O32,R32,U32,X32,AA32)=0,"",SUM(C32,F32,I32,L32,O32,R32,U32,X32,AA32)) -> 1851 | AE32: =IF(SUM(D32,G32,J32,M32,P32,S32,V32,Y32,AB32)=0,"",SUM(D32,G32,J32,M32,P32,S32,V32,Y32,AB32)) -> 3721
A33: =IF(MATRICULA!B19=0,"",MATRICULA!B19) -> Particulares | C33: 10 | D33: 27 | E33: 37 | F33: 30 | G33: 68 | H33: 98 | I33: 7 | J33: 41 | K33: 48 | L33: 42 | M33: 63 | N33: 105 | O33: 6 | P33: 23 | Q33: 29 | R33: 2 | S33: 50 | T33: 52 | U33: 19 | V33: 45 | W33: 64 | X33: 6 | Y33: 13 | Z33: 19 | AA33: 9 | AB33: 21 | AC33: 30 | AD33: 131 | AE33: 351
A34: =IF(MATRICULA!B20=0,"",MATRICULA!B20) -> Técnicas | C34: 272 | D34: 440 | E34: 712 | F34: 303 | G34: 644 | H34: 947 | I34: 266 | J34: 409 | K34: 675 | L34: 204 | M34: 536 | N34: 740 | O34: 281 | P34: 534 | Q34: 815 | R34: 229 | S34: 508 | T34: 737 | U34: 218 | V34: 429 | W34: 647 | X34: 59 | Y34: 88 | Z34: 147 | AA34: 200 | AB34: 312 | AC34: 512 | AD34: 2032 | AE34: 3900
A35: =IF(MATRICULA!B21=0,"",MATRICULA!B21) -> Telesecundarias | C35: 44 | D35: 129 | E35: 173 | F35: 59 | G35: 172 | H35: 231 | I35: 58 | J35: 136 | K35: 194 | L35: 54 | M35: 174 | N35: 228 | O35: 53 | P35: 149 | Q35: 202 | R35: 57 | S35: 98 | T35: 155 | U35: 45 | V35: 64 | W35: 109 | X35: 20 | Y35: 21 | Z35: 41 | AA35: 31 | AB35: 48 | AC35: 79 | AD35: 421 | AE35: 991
A36: =IF(MATRICULA!B22=0,"",MATRICULA!B22) -> 
A37: =IF(MATRICULA!B23=0,"",MATRICULA!B23) -> 
A38: =IF(MATRICULA!B24=0,"",MATRICULA!B24) -> 
A39: =IF(MATRICULA!B25=0,"",MATRICULA!B25) ->  | E39: =IF(SUM(C39,D39)=0,"",SUM(C39,D39)) ->  | H39: =IF(SUM(F39,G39)=0,"",SUM(F39,G39)) ->  | K39: =IF(SUM(I39,J39)=0,"",SUM(I39,J39)) ->  | N39: =IF(SUM(L39,M39)=0,"",SUM(L39,M39)) ->  | Q39: =IF(SUM(O39,P39)=0,"",SUM(O39,P39)) ->  | T39: =IF(SUM(R39,S39)=0,"",SUM(R39,S39)) ->  | W39: =IF(SUM(U39,V39)=0,"",SUM(U39,V39)) ->  | Z39: =IF(SUM(X39,Y39)=0,"",SUM(X39,Y39)) ->  | AC39: =IF(SUM(AA39,AB39)=0,"",SUM(AA39,AB39)) ->  | AD39: =IF(SUM(C39,F39,I39,L39,O39,R39,U39,X39,AA39)=0,"",SUM(C39,F39,I39,L39,O39,R39,U39,X39,AA39)) -> 
A40: =IF(MATRICULA!B26=0,"",MATRICULA!B26) -> 
A41: =IF(MATRICULA!B27=0,"",MATRICULA!B27) -> 
A42: Total | C42: =IF(SUM(C32:C41)=0,"",SUM(C32:C41)) -> 572 | D42: 1129 | E42: 1701 | F42: 735 | G42: 1443 | H42: 2178 | I42: 487 | J42: 1033 | K42: 1520 | L42: 606 | M42: 1363 | N42: 1969 | O42: 569 | P42: 1167 | Q42: 1736 | R42: 419 | S42: 1028 | T42: 1447 | U42: 492 | V42: 881 | W42: 1373 | X42: 142 | Y42: 198 | Z42: 340 | AA42: 413 | AB42: 721 | AC42: 1134 | AD42: 4435 | AE42: 8963
A44: Nota: Para las columnas "Campos de Formación Académica y Áreas de Desarrollo Personal y Social en riesgo de no acreditar" registre la cantidad de cincos o seis que existen en cada campo o área.

Sheet Gráfica APROV 2
B3: Secretaría de Educación Pública del Estado de Baja California Sur
B4: Dirección de Educación Secundaria
B5: SEGUNDO GRADO
B6: PERIODO EVALUACIÓN: | N6: =MATRICULA!O7 -> SEGUNDO PERIODO DE EVALUACIÓN
B7: CICLO ESCOLAR : | N7: =MATRICULA!O8 -> 2022-2023
A9: JEFE DE DEPARTAMENTO: | J9: =MATRICULA!I11 -> MTRA OFELIA ELIZABETH OCHOA ROMERO
A10: MODALIDAD : | J10: =MATRICULA!I12 -> CONCENTRADO EDUCACIÓN SECUNDARIA
B12: Lengua Materna | C12: Matemáticas | D12: Inglés | E12: Ciencias y tecnología (Física) | F12: Historia | G12: Formación Cívica y Ética | H12: Tecnología II | I12: Educación Física | J12: Artes
B13: ='APROV 2'!C27 -> 8.5 | C13: ='APROV 2'!F27 -> 8.2 | D13: ='APROV 2'!I27 -> 8.5 | E13: ='APROV 2'!L27 -> 8.4 | F13: ='APROV 2'!O27 -> 8.5 | G13: ='APROV 2'!R27 -> 8.7 | H13: ='APROV 2'!U27 -> 8.9 | I13: ='APROV 2'!X27 -> 9.5 | J13: ='APROV 2'!AA27 -> 9.1

Sheet APROV 3
C3: Secretaría de Educación Pública del Estado de Baja California Sur
C4: Dirección de Educación Secundaria
C5: APROVECHAMIENTO Y RIESGO DE NO ACREDITAR
C6: TERCER GRADO
C7: PERIODO EVALUACIÓN: | O7: =IF('APROV 1'!O7:AA7<>0,'APROV 1'!O7:AA7, "") -> SEGUNDO PERIODO DE EVALUACIÓN
C8: CICLO ESCOLAR : | O8: =IF('APROV 1'!O8:AA8<>0, 'APROV 1'!O8:AA8, "") -> 2022-2023
A10: JEFE DE DEPARTAMENTO: | I10: =MATRICULA!I11 -> MTRA OFELIA ELIZABETH OCHOA ROMERO
A11: MODALIDAD : | I11: =MATRICULA!I12 -> CONCENTRADO EDUCACIÓN SECUNDARIA
A13: Promedio de Aprovechamiento de los Campos de Formación Académica | X13: Promedio de Aprovechamiento de las Áreas de Desarrollo Personal y Social | AD13: Prom. Final
A14: Zona escolar | B14: GRUPOS | C14: Español III | F14: Matemáticas III | I14: Segunda Lengua: Inglés III | L14: Ciencias III (Énfasis en Química) | O14: Historia II | R14: Formación Cívica y Ética II | U14: Tecnología III | X14: Educación Física III | AA14: Artes III
C15: CALIF | F15: CALIF | I15: CALIF | L15: CALIF | O15: CALIF | R15: CALIF | U15: CALIF | X15: CALIF | AA15: CALIF | AD15: CALIF
A16: =IF(MATRICULA!B18=0,"",MATRICULA!B18) -> Generales Públicas | B16: 185 | C16: 8.5 | F16: 8.2 | I16: 8.6 | L16: 8.3 | O16: 8.5 | R16: 8.6 | U16: 8.8 | X16: 9.5 | AA16: 8.7 | AD16: =IFERROR(ROUND(AVERAGE(C16:AC16),1),"") -> 8.6
A17: =IF(MATRICULA!B19=0,"",MATRICULA!B19) -> Particulares | B17: 70 | C17: 8.7 | F17: 8.6 | I17: 8.6 | L17: 8.7 | O17: 8.9 | R17: 9.1 | U17: 9.3 | X17: 9.7 | AA17: 9.5 | AD17: 9
A18: =IF(MATRICULA!B20=0,"",MATRICULA!B20) -> Técnicas | B18: 242 | C18: 8.5 | F18: 8.2 | I18: 8.5 | L18: 8.3 | O18: 8.4 | R18: 8.5 | U18: 8.7 | X18: 9.4 | AA18: 8.9 | AD18: 8.6
A19: =IF(MATRICULA!B21=0,"",MATRICULA!B21) -> Telesecundarias | B19: 100 | C19: 8.3 | F19: 8.1 | I19: 8.4 | L19: 8.2 | O19: 8.4 | R19: 8.7 | U19: 8.9 | X19: 9.1 | AA19: 9.1 | AD19: 8.6
A20: =IF(MATRICULA!B22=0,"",MATRICULA!B22) -> 
A21: =IF(MATRICULA!B23=0,"",MATRICULA!B23) -> 
A22: =IF(MATRICULA!B24=0,"",MATRICULA!B24) -> 
A23: =IF(MATRICULA!B25=0,"",MATRICULA!B25) ->  | AD23: =IFERROR(ROUND(AVERAGE(C23:AC23),1),"") -> 
A24: =IF(MATRICULA!B26=0,"",MATRICULA!B26) -> 
A25: =IF(MATRICULA!B27=0,"",MATRICULA!B27) -> 
A26: Gral. | B26: =IF(SUM(B16:B24)=0,"",SUM(B16:B24)) -> 597 | C26: =IFERROR(ROUND(AVERAGE(C16:E25),1),"") -> 8.5 | F26: =IFERROR(ROUND(AVERAGE(F16:H25),1),"") -> 8.3 | I26: =IFERROR(ROUND(AVERAGE(I16:K25),1),"") -> 8.5 | L26: =IFERROR(ROUND(AVERAGE(L16:N25),1),"") -> 8.4 | O26: =IFERROR(ROUND(AVERAGE(O16:Q25),1),"") -> 8.6 | R26: =IFERROR(ROUND(AVERAGE(R16:T25),1),"") -> 8.7 | U26: =IFERROR(ROUND(AVERAGE(U16:W25),1),"") -> 8.9 | X26: =IFERROR(ROUND(AVERAGE(X16:Z25),1),"") -> 9.4 | AA26: =IFERROR(ROUND(AVERAGE(AA16:AC25),1),"") -> 9.1 | AD26: =IFERROR(ROUND(AVERAGE(C26:AC26),1),"") -> 8.7
A28: Campos de Formación Académica en situacion de riesgo de no acreditar | X28: Áreas de Desarrollo Personal y Social en situación de riesgo de no acreditar
A29: Zona escolar | C29: Español III | F29: Matemáticas III | I29: Segunda Lengua: Inglés III | L29: Ciencias III (Énfasis en Química) | O29: Historia II | R29: Formación Cívica y Ética II | U29: Tecnología III | X29: Educación Física III | AA29: Artes III | AD29: Total
C30: 5 | D30: 6 | E30: T | F30: 5 | G30: 6 | H30: T | I30: 5 | J30: 6 | K30: T | L30: 5 | M30: 6 | N30: T | O30: 5 | P30: 6 | Q30: T | R30: 5 | S30: 6 | T30: T | U30: 5 | V30: 6 | W30: T | X30: 5 | Y30: 6 | Z30: T | AA30: 5 | AB30: 6 | AC30: T | AD30: 5 | AE30: 6
A31: =IF(MATRICULA!B18=0,"",MATRICULA!B18) -> Generales Públicas | C31: 246 | D31: 533 | E31: =IF(SUM(C31,D31)=0,"",SUM(C31,D31)) -> 779 | F31: 343 | G31: 559 | H31: =IF(SUM(F31,G31)=0,"",SUM(F31,G31)) -> 902 | I31: 156 | J31: 447 | K31: =IF(SUM(I31,J31)=0,"",SUM(I31,J31)) -> 603 | L31: 306 | M31: 590 | N31: =IF(SUM(L31,M31)=0,"",SUM(L31,M31)) -> 896 | O31: 229 | P31: 461 | Q31: =IF(SUM(O31,P31)=0,"",SUM(O31,P31)) -> 690 | R31: 131 | S31: 372 | T31: =IF(SUM(R31,S31)=0,"",SUM(R31,S31)) -> 503 | U31: 210 | V31: 343 | W31: =IF(SUM(U31,V31)=0,"",SUM(U31,V31)) -> 553 | X31: 57 | Y31: 76 | Z31: =IF(SUM(X31,Y31)=0,"",SUM(X31,Y31)) -> 133 | AA31: 173 | AB31: 340 | AC31: =IF(SUM(AA31,AB31)=0,"",SUM(AA31,AB31)) -> 513 | AD31: =IF(SUM(C31,F31,I31,L31,O31,R31,U31,X31,AA31)=0,"",SUM(C31,F31,I31,L31,O31,R31,U31,X31,AA31)) -> 1851 | AE31: =IF(SUM(D31,G31,J31,M31,P31,S31,V31,Y31,AB31)=0,"",SUM(D31,G31,J31,M31,P31,S31,V31,Y31,AB31)) -> 3721
A32: =IF(MATRICULA!B19=0,"",MATRICULA!B19) -> Particulares | C32: 13 | D32: 39 | E32: 52 | F32: 38 | G32: 70 | H32: 108 | I32: 23 | J32: 44 | K32: 67 | L32: 16 | M32: 48 | N32: 64 | O32: 10 | P32: 43 | Q32: 53 | R32: 13 | S32: 41 | T32: 54 | U32: 20 | V32: 33 | W32: 53 | X32: 7 | Y32: 7 | Z32: 14 | AA32: 5 | AB32: 20 | AC32: 25 | AD32: 145 | AE32: 345
A33: =IF(MATRICULA!B20=0,"",MATRICULA!B20) -> Técnicas | C33: 266 | D33: 313 | E33: 579 | F33: 277 | G33: 473 | H33: 750 | I33: 259 | J33: 313 | K33: 572 | L33: 324 | M33: 541 | N33: 865 | O33: 222 | P33: 440 | Q33: 662 | R33: 225 | S33: 447 | T33: 672 | U33: 256 | V33: 317 | W33: 573 | X33: 43 | Y33: 76 | Z33: 119 | AA33: 136 | AB33: 299 | AC33: 435 | AD33: 2008 | AE33: 3219
A34: =IF(MATRICULA!B21=0,"",MATRICULA!B21) -> Telesecundarias | C34: 31 | D34: 96 | E34: 127 | F34: 40 | G34: 107 | H34: 147 | I34: 45 | J34: 67 | K34: 112 | L34: 51 | M34: 92 | N34: 143 | O34: 41 | P34: 86 | Q34: 127 | R34: 31 | S34: 76 | T34: 107 | U34: 31 | V34: 55 | W34: 86 | X34: 18 | Y34: 17 | Z34: 35 | AA34: 37 | AB34: 57 | AC34: 94 | AD34: 325 | AE34: 653
A35: =IF(MATRICULA!B22=0,"",MATRICULA!B22) -> 
A36: =IF(MATRICULA!B23=0,"",MATRICULA!B23) -> 
A37: =IF(MATRICULA!B24=0,"",MATRICULA!B24) -> 
A38: =IF(MATRICULA!B25=0,"",MATRICULA!B25) ->  | E38: =IF(SUM(C38,D38)=0,"",SUM(C38,D38)) ->  | H38: =IF(SUM(F38,G38)=0,"",SUM(F38,G38)) ->  | K38: =IF(SUM(I38,J38)=0,"",SUM(I38,J38)) ->  | N38: =IF(SUM(L38,M38)=0,"",SUM(L38,M38)) ->  | Q38: =IF(SUM(O38,P38)=0,"",SUM(O38,P38)) ->  | T38: =IF(SUM(R38,S38)=0,"",SUM(R38,S38)) ->  | W38: =IF(SUM(U38,V38)=0,"",SUM(U38,V38)) ->  | Z38: =IF(SUM(X38,Y38)=0,"",SUM(X38,Y38)) ->  | AC38: =IF(SUM(AA38,AB38)=0,"",SUM(AA38,AB38)) ->  | AD38: =IF(SUM(C38,F38,I38,L38,O38,R38,U38,X38,AA38)=0,"",SUM(C38,F38,I38,L38,O38,R38,U38,X38,AA38)) -> 
A39: =IF(MATRICULA!B26=0,"",MATRICULA!B26) -> 
A40: =IF(MATRICULA!B27=0,"",MATRICULA!B27) -> 
A41: Total | C41: =IF(SUM(C31:C40)=0,"",SUM(C31:C40)) -> 556 | D41: 981 | E41: 1537 | F41: 698 | G41: 1209 | H41: 1907 | I41: 483 | J41: 871 | K41: 1354 | L41: 697 | M41: 1271 | N41: 1968 | O41: 502 | P41: 1030 | Q41: 1532 | R41: 400 | S41: 936 | T41: 1336 | U41: 517 | V41: 748 | W41: 1265 | X41: 125 | Y41: 176 | Z41: 301 | AA41: 351 | AB41: 716 | AC41: 1067 | AD41: 4329 | AE41: 7938
A42: Nota: Para las columnas "Campos de Formación Académica y Áreas de Desarrollo Personal y Social en riesgo de no acreditar" registre la cantidad de cincos o seis que existen en cada campo o área.

Sheet Gráfica APROV 3
B3: Secretaría de Educación Pública del Estado de Baja California Sur
B4: Dirección de Educación Secundaria
B5: TERCER GRADO
B6: PERIODO EVALUACIÓN: | N6: =MATRICULA!O7 -> SEGUNDO PERIODO DE EVALUACIÓN
B7: CICLO ESCOLAR : | N7: =MATRICULA!O8 -> 2022-2023
A9: JEFE DE DEPARTAMENTO: | J9: =MATRICULA!I11 -> MTRA OFELIA ELIZABETH OCHOA ROMERO
A10: MODALIDAD : | J10: =MATRICULA!I12 -> CONCENTRADO EDUCACIÓN SECUNDARIA
B12: Español III | C12: Matemáticas III | D12: Segunda Lengua: Inglés III | E12: Ciencias III (Énfasis en Química) | F12: Historia II | G12: Formación Cívica y Ética II | H12: Tecnología III | I12: Educación Física III | J12: Artes III
B13: ='APROV 3'!C26 -> 8.5 | C13: ='APROV 3'!F26 -> 8.3 | D13: ='APROV 3'!I26 -> 8.5 | E13: ='APROV 3'!L26 -> 8.4 | F13: ='APROV 3'!O26 -> 8.6 | G13: ='APROV 3'!R26 -> 8.7 | H13: ='APROV 3'!U26 -> 8.9 | I13: ='APROV 3'!X26 -> 9.4 | J13: ='APROV 3'!AA26 -> 9.1

Sheet Gráfica Promedios Finales
B3: Secretaría de Educación Pública del Estado de Baja California Sur
B4: Dirección de Educación Secundaria
B5: PERIODO DE EVALUACIÓN: | N5: =MATRICULA!O7 -> SEGUNDO PERIODO DE EVALUACIÓN
B6: CICLO ESCOLAR : | N6: =MATRICULA!O8 -> 2022-2023
A8: JEFE DE DEPARTAMENTO: | I8: =MATRICULA!I11 -> MTRA OFELIA ELIZABETH OCHOA ROMERO
A9: MODALIDAD : | I9: =MATRICULA!I12 -> CONCENTRADO EDUCACIÓN SECUNDARIA
B14: PROMEDIO 1RO | C14: PROMEDIO 2DO | D14: PROMEDIO 3ERO
B15: =+'APROV 1'!AG26 -> 8.6 | C15: =+'APROV 2'!AD27 -> 8.7 | D15: ='APROV 3'!AD26 -> 8.7

Sheet NORMALIDAD MÍNIMA
B3: Secretaría de Educación Pública del Estado de Baja California Sur
B4: Dirección de Educación Secundaria
B5: NORMALIDAD MÍNIMA
B6: PERIODO DE EVALUACIÓN: | K6: =IF('APROV 1'!O7<>0,'APROV 1'!O7, "") -> SEGUNDO PERIODO DE EVALUACIÓN
B7: CICLO ESCOLAR : | K7: =IF('APROV 1'!O8<>0, 'APROV 1'!O8, "") -> 2022-2023
A9: JEFE DE DEPARTAMENTO: | G9: =MATRICULA!I11 -> MTRA OFELIA ELIZABETH OCHOA ROMERO
A10: MODALIDAD : | G10: =MATRICULA!I12 -> CONCENTRADO EDUCACIÓN SECUNDARIA
A12: Zona escolar | B12: DIRECTIVOS Directores | D12: DIRECTIVOS Subdirectores | G12: COORDINADORES | J12: R | K12: INASISTENCIAS | N12: LICENCIAS ECONÓMICAS | P12: LICENCIAS MÉDICAS | R12: TOTAL DE DÍAS NO LABORADOS
B13: H | C13: M | D13: H | E13: M | F13: T | G13: H | H13: M | I13: T | K13: I | L13: P.D. | M13: D.N.L.I y P.D. | N13: L.E. | O13: D.N.L.E. | P13: L.M. | Q13: D.N.L.M. | R13: DNLI y PD, DNLE, DNLM
A14: =IF(MATRICULA!B18=0,"",MATRICULA!B18) -> Generales Públicas | B14: 33 | C14: 11 | D14: 18 | E14: 20 | F14: =IF(SUM(B14:E14)=0,"",SUM(B14:E14)) -> 82 | G14: 17 | H14: 16 | I14: =IF(SUM(G14,H14)=0,"",SUM(G14,H14)) -> 33 | K14: 1 | L14: 30 | M14: =IF(SUM(K14,L14)=0,"",SUM(K14,L14)) -> 31 | N14: 34 | O14: 70 | P14: 32 | Q14: 240 | R14: =IF(SUM(M14,O14,Q14)=0,"",SUM(M14,O14,Q14)) -> 341
A15: =IF(MATRICULA!B19=0,"",MATRICULA!B19) -> Particulares | F15: =IF(SUM(B15:E15)=0,"",SUM(B15:E15)) ->  | I15: =IF(SUM(G15,H15)=0,"",SUM(G15,H15)) ->  | M15: =IF(SUM(K15,L15)=0,"",SUM(K15,L15)) -> 
A16: =IF(MATRICULA!B20=0,"",MATRICULA!B20) -> Técnicas | B16: 20 | C16: 14 | D16: 20 | E16: 9 | F16: 63 | G16: 28 | H16: 21 | I16: 49 | K16: 1 | L16: 3 | M16: 4 | N16: 33 | O16: 73 | P16: 72 | Q16: 115 | R16: 192
A17: =IF(MATRICULA!B21=0,"",MATRICULA!B21) -> Telesecundarias | B17: 17 | C17: 6 | D17: 10 | E17: 3 | F17: 36 | L17: 43 | M17: 43 | N17: 20 | O17: 46 | P17: 2 | Q17: 10 | R17: 99
A18: =IF(MATRICULA!B22=0,"",MATRICULA!B22) -> 
A19: =IF(MATRICULA!B23=0,"",MATRICULA!B23) -> 
A20: =IF(MATRICULA!B24=0,"",MATRICULA!B24) -> 
A21: =IF(MATRICULA!B25=0,"",MATRICULA!B25) -> 
A22: =IF(MATRICULA!B26=0,"",MATRICULA!B26) -> 
A23: =IF(MATRICULA!B27=0,"",MATRICULA!B27) ->  | F23: =IF(SUM(B23,E23)=0,"",SUM(B23,E23)) -> 
A24: Total | B24: =IF(SUM(B14:B23)=0,"",SUM(B14:B23)) -> 70 | C24: =IF(SUM(C14:C22)=0,"",SUM(C14:C22)) -> 31 | D24: =IF(SUM(D14:D22)=0,"",SUM(D14:D22)) -> 48 | E24: 32 | F24: 181 | G24: 45 | H24: 37 | I24: 82 | K24: 2 | L24: 76 | M24: 78 | N24: 87 | O24: 189 | P24: 106 | Q24: 365 | R24: 632
A26: Zona escolar | B26: PERSONAL POR HORAS | G26: DOCENTES | J26: R | K26: INASISTENCIAS (Horas) | N26: LICENCIAS ECONÓMICAS | P26: LICENCIAS MÉDICAS | R26: TOTAL DE HORAS NO LABORADOS
G27: F | H27: E | I27: T | K27: I | L27: P.D. | M27: H.N.L.I y P.D. | N27: L.E. | O27: H.N.L.E. | P27: L.M. | Q27: H.N.L.M. | R27: HNLI y PD, HNLE, HNLM
A28: =IF(MATRICULA!B18=0,"",MATRICULA!B18) -> Generales Públicas | G28: 977 | H28: 102 | I28: =IF(SUM(G28,H28)=0,"",SUM(G28,H28)) -> 1079 | J28: 332 | K28: 2910 | L28: 624 | M28: =IF(SUM(K28,L28)=0,"",SUM(K28,L28)) -> 3534 | N28: 889 | O28: 6101 | P28: 597 | Q28: 5135 | R28: =IF(SUM(M28,O28,Q28)=0,"",SUM(M28,O28,Q28)) -> 14770
A29: =IF(MATRICULA!B19=0,"",MATRICULA!B19) -> Particulares | M29: =IF(SUM(K29,L29)=0,"",SUM(K29,L29)) -> 
A30: =IF(MATRICULA!B20=0,"",MATRICULA!B20) -> Técnicas | G30: 722 | H30: 150 | I30: 872 | J30: 480 | K30: 1221 | L30: 675 | M30: 1896 | N30: 452 | O30: 4858 | P30: 269 | Q30: 3497 | R30: 10251
A31: =IF(MATRICULA!B21=0,"",MATRICULA!B21) -> Telesecundarias | G31: 224 | H31: 51 | I31: 275 | K31: 6 | M31: 6 | N31: 180 | O31: 787 | P31: 90 | Q31: 513 | R31: 1306
A32: =IF(MATRICULA!B22=0,"",MATRICULA!B22) -> 
A33: =IF(MATRICULA!B23=0,"",MATRICULA!B23) -> 
A34: =IF(MATRICULA!B24=0,"",MATRICULA!B24) -> 
A35: =IF(MATRICULA!B25=0,"",MATRICULA!B25) -> 
A36: =IF(MATRICULA!B26=0,"",MATRICULA!B26) -> 
A37: =IF(MATRICULA!B27=0,"",MATRICULA!B27) -> 
A38: Total | G38: =IF(SUM(G28:G37)=0,"",SUM(G28:G37)) -> 1923 | H38: 303 | I38: 2226 | J38: 812 | K38: 4137 | L38: 1299 | M38: 5436 | N38: 1521 | O38: 11746 | P38: 956 | Q38: 9145 | R38: 26327
A40: Zona escolar | B40: ASISTENCIA EDUCATIVA (Psicólogos, trabajo social, médicos, prefectos) | G40: ADMINISTRATIVO Y DE APOYO | J40: R | K40: INASISTENCIAS | N40: LICENCIAS ECONÓMICAS | P40: LICENCIAS MÉDICAS | R40: TOTAL DE DÍAS NO LABORADOS
B41: F | D41: E | F41: T | G41: F | H41: E | I41: T | K41: I | L41: P.D. | M41: D.N.L.I y P.D. | N41: L.E. | O41: D.N.L.E. | P41: L.M. | Q41: D.N.L.M. | R41: DNLI y PD, DNLE, DNLM
A42: =IF(MATRICULA!B18=0,"",MATRICULA!B18) -> Generales Públicas | B42: 175 | D42: 38 | F42: =IF(SUM(B42:E42)=0,"",SUM(B42:E42)) -> 213 | G42: 291 | H42: 167 | I42: =IF(SUM(G42,H42)=0,"",SUM(G42,H42)) -> 458 | J42: 219 | K42: 260 | L42: 41 | M42: =IF(SUM(K42,L42)=0,"",SUM(K42,L42)) -> 301 | N42: 367 | O42: 1021 | P42: 180 | Q42: 721 | R42: =IF(SUM(M42,O42,Q42)=0,"",SUM(M42,O42,Q42)) -> 2043
A43: =IF(MATRICULA!B19=0,"",MATRICULA!B19) -> Particulares | F43: =IF(SUM(B43:E43)=0,"",SUM(B43:E43)) -> 
A44: =IF(MATRICULA!B20=0,"",MATRICULA!B20) -> Técnicas | B44: 122 | D44: 55 | F44: 177 | G44: 206 | H44: 112 | I44: 318 | J44: 271 | K44: 218 | L44: 90 | M44: 308 | N44: 250 | O44: 638 | P44: 150 | Q44: 707 | R44: 1653
A45: =IF(MATRICULA!B21=0,"",MATRICULA!B21) -> Telesecundarias | B45: 11 | D45: 7 | F45: 18 | G45: 44 | H45: 88 | I45: 132 | J45: 59 | K45: 51 | L45: 66 | M45: 117 | N45: 62 | O45: 204 | P45: 108 | Q45: 267 | R45: 588
A46: =IF(MATRICULA!B22=0,"",MATRICULA!B22) -> 
A47: =IF(MATRICULA!B23=0,"",MATRICULA!B23) -> 
A48: =IF(MATRICULA!B24=0,"",MATRICULA!B24) -> 
A49: =IF(MATRICULA!B25=0,"",MATRICULA!B25) -> 
A50: =IF(MATRICULA!B26=0,"",MATRICULA!B26) -> 
A51: =IF(MATRICULA!B27=0,"",MATRICULA!B27) -> 
A52: Total | B52: =IF(SUM(B42:B51)=0,"",SUM(B42:B51)) -> 308 | D52: 100 | F52: =IF(SUM(F42:F51)=0,"",SUM(F42:F51)) -> 408 | G52: 541 | H52: 367 | I52: 908 | J52: 549 | K52: 529 | L52: 197 | M52: 726 | N52: 679 | O52: 1863 | P52: 438 | Q52: 1695 | R52: 4284
A54: NOTA: | L54: NOTA:
A55: I.: INASISTENCIAS | L55: H.N.L.E.: HORAS NO LABORADOS POR LICENCIAS ECONÓMICAS
A56: H.N.L.I.: HORAS NO LABORADAS POR INASISTENCIAS | L56: D.N.L.E.: DÍAS NO LABORADOS POR LICENCIAS ECONÓMICAS
A57: D.N.L.I.: DÍAS NO LABORADOS POR INASISTENCIAS | L57: L.M.: PERSONAS QUE PRESENTARON LICENCIAS MÉDICAS
A58: R. : CANTIDAD DE RETARDOS | L58: H.N.L.M.: HORAS NO LABORADAS POR LICENCIAS MÉDICAS
A59: L.E.: PERSONAL QUE SOLICITÓ LICENCIAS ECONÓMICAS | L59: D.N.L.M.: DÍAS NO LABORADOS POR LICENCIAS MÉDICAS
A60: P.D.: PERMISOS DIRECCIÓN | L60: F: FONE E: EVENTUALES

Sheet Hoja1 (hidden)
C3: PRIMER PERIODO DE EVALUACIÓN
C4: SEGUNDO PERIODO DE EVALUACIÓN
C5: TERCER PERIODO DE EVALUACIÓN
C6: CIERRE DE CICLO ESCOLAR 2022-2023
C9: SECUNDARIAS GENERALES PÚBLICAS
C10: SECUNDARIAS GENERALES PARTICULARES
